fUSD/lending_fUSD_20240714
["ID","MTS","AMOUNT","RATE_DAILY","PERIOD"]
[332081346,1720953044484,-500.0,0.00013753,2]
[332081348,1720953044493,-759.7,0.00013753,2]
[332081350,1720953044502,-571.84,0.00013753,2]
[332081352,1720953044512,-813.67,0.00013753,2]
[332081354,1720953044521,-500.0,0.00013753,2]
[332081356,1720953044530,-500.0,0.00013753,2]
[332081358,1720953044539,-500.0,0.00013753,2]
[332081360,1720953044549,-1769.97,0.00013753,2]
[332081362,1720953044558,-2233.7,0.00013753,2]
[332081364,1720953044567,-563.79,0.00013753,2]
[332081366,1720953044577,-660.57,0.00013753,2]
[332081368,1720953044586,-500.0,0.00013753,2]
[332081370,1720953044595,-500.0,0.00013753,2]
[332081372,1720953044605,-597.19,0.00013753,2]
[332081374,1720953044614,-1284.3,0.00013753,2]
[332081376,1720953044623,-552.52,0.00013753,2]
[332081378,1720953044632,-500.0,0.00013753,2]
[332081380,1720953044642,-500.0,0.00013753,2]
[332081382,1720953044651,-1017.39,0.00013753,2]
[332081384,1720953044660,-500.0,0.00013753,2]
[332081386,1720953044670,-500.0,0.00013753,2]
[332081388,1720953044679,-1063.32,0.00013753,2]
[332081390,1720953044688,-500.0,0.00013753,2]
[332081392,1720953044697,-500.0,0.00013753,2]
[332081394,1720953044707,-532.45,0.00013753,2]
[332081396,1720953044715,-500.0,0.00013753,2]
[332081398,1720953044724,-810.42,0.00013753,2]
[332081399,1720953044734,-500.0,0.00013753,2]
[332081401,1720953044743,-734.34,0.00013753,2]
[332081404,1720953044753,-500.0,0.00013753,2]
[332081406,1720953044762,-500.0,0.00013753,2]
[332081408,1720953044772,-500.0,0.00013753,2]
[332081410,1720953044782,-1042.25,0.00013753,2]
[332081412,1720953044791,-544.08,0.00013753,2]
[332081414,1720953044801,-767.04,0.00013753,2]
[332081415,1720953044810,-577.6,0.00013753,2]
[332081417,1720953044819,-500.0,0.00013753,2]
[332081419,1720953044829,-500.0,0.00013753,2]
[332081421,1720953044839,-500.0,0.00013753,2]
[332081423,1720953044850,-500.0,0.00013753,2]
[332081425,1720953044859,-500.0,0.00013753,2]
[332081427,1720953044869,-500.0,0.00013753,2]
[332081429,1720953044878,-890.25,0.00013753,2]
[332081431,1720953044887,-500.0,0.00013753,2]
[332081434,1720953044897,-500.0,0.00013753,2]
[332081436,1720953044908,-529.03,0.00013753,2]
[332081438,1720953044917,-500.0,0.00013753,2]
[332081440,1720953044926,-786.78,0.00013753,2]
[332081441,1720953044936,-500.0,0.00013753,2]
[332081442,1720953044945,-991.4,0.00013753,2]
[332081443,1720953044955,-514.71,0.00013753,2]
[332081444,1720953044964,-500.0,0.00013753,2]
[332081445,1720953044973,-616.84,0.00013753,2]
[332081446,1720953044983,-500.0,0.00013753,2]
[332081447,1720953044992,-628.72,0.00013753,2]
[332081449,1720953045002,-785.58,0.00013753,2]
[332081451,1720953045011,-3926.71,0.00013753,2]
[332081453,1720953045020,-2899.14,0.00013753,2]
[332081455,1720953045030,-824.32,0.00013753,2]
[332081457,1720953045039,-819.62,0.00013753,2]
[332081459,1720953045048,-516.57,0.00013753,2]
[332081462,1720953045057,-922.21,0.00013753,2]
[332081464,1720953045067,-500.0,0.00013753,2]
[332081466,1720953045076,-773.04,0.00013753,2]
[332081467,1720953045085,-938.7,0.00013753,2]
[332081469,1720953045094,-655.89,0.00013753,2]
[332081471,1720953045103,-841.33,0.00013753,2]
[332081474,1720953045113,-500.0,0.00013753,2]
[332081476,1720953045122,-593.56,0.00013753,2]
[332081477,1720953045131,-500.0,0.00013753,2]
[332081479,1720953045140,-599.08,0.00013753,2]
[332081481,1720953045150,-500.0,0.00013753,2]
[332081483,1720953045159,-500.0,0.00013753,2]
[332081486,1720953045168,-799.31,0.00013753,2]
[332081488,1720953045177,-524.43,0.00013753,2]
[332081490,1720953045187,-995.19,0.00013753,2]
[332081491,1720953045195,-500.0,0.00013753,2]
[332081493,1720953045207,-725.52,0.00013753,2]
[332081495,1720953045217,-500.0,0.00013753,2]
[332081497,1720953045225,-500.0,0.00013753,2]
[332081499,1720953045235,-500.0,0.00013753,2]
[332081501,1720953045244,-500.0,0.00013753,2]
[332081503,1720953045253,-150.0,0.00013793,2]
[332081506,1720953045263,-150.0,0.00013795,2]
[332081508,1720953045272,-150.0,0.00013797,2]
[332081510,1720953045282,-150.0,0.00013798,2]
[332081512,1720953045295,-273.63,0.000138,2]
[332081513,1720953045304,-400.0,0.000138,5]
[332081515,1720953045313,-213896.982209,0.000138,2]
[332081517,1720953045323,-150.0,0.00013806,2]
[332081519,1720953045334,-598.0,0.00013808,2]
[332081521,1720953045344,-500.0,0.00013808,2]
[332081523,1720953045354,-500.0,0.00013808,2]
[332081525,1720953045364,-500.0,0.00013808,2]
[332081527,1720953045373,-500.0,0.00013808,2]
[332081529,1720953045382,-500.0,0.00013808,2]
[332081531,1720953045393,-500.0,0.00013808,2]
[332081533,1720953045402,-500.0,0.00013808,2]
[332081536,1720953045411,-500.0,0.00013808,2]
[332081538,1720953045420,-535.92,0.00013808,2]
[332081540,1720953045429,-500.0,0.00013808,2]
[332081542,1720953045439,-500.0,0.00013808,2]
[332081544,1720953045448,-500.0,0.00013808,2]
[332081545,1720953045457,-500.0,0.00013808,2]
[332081547,1720953045466,-502.1,0.00013808,2]
[332081549,1720953045475,-269.55796191,0.00013808,2]
[332081551,1720953045485,-500.0,0.00013808,2]
[332081573,1720953045679,-500.0,0.00013808,2]
[332081577,1720953045690,-500.0,0.00013808,2]
[332081579,1720953045699,-500.0,0.00013808,2]
[332081582,1720953045709,-513.5,0.00013808,2]
[332081584,1720953045718,-534.14055763,0.00013808,2]
[332081587,1720953045727,-500.0,0.00013808,2]
[332081589,1720953045736,-500.0,0.00013808,2]
[332081592,1720953045745,-500.0,0.00013808,2]
[332081595,1720953045755,-500.0,0.00013808,2]
[332081597,1720953045764,-500.0,0.00013808,2]
[332081600,1720953045773,-500.0,0.00013808,2]
[332081602,1720953045783,-500.0,0.00013808,2]
[332081605,1720953045792,-500.0,0.00013808,2]
[332081608,1720953045802,-531.53,0.00013808,2]
[332081610,1720953045811,-500.0,0.00013808,2]
[332081613,1720953045820,-500.0,0.00013808,2]
[332081617,1720953045830,-500.0,0.00013808,2]
[332081620,1720953045839,-500.0,0.00013808,2]
[332081622,1720953045850,-614.64,0.00013808,2]
[332081624,1720953045859,-522.28,0.00013808,2]
[332081626,1720953045869,-500.0,0.00013808,2]
[332081628,1720953045878,-500.0,0.00013808,2]
[332081630,1720953045888,-500.0,0.00013808,2]
[332081633,1720953045898,-500.0,0.00013808,2]
[332081636,1720953045907,-500.0,0.00013808,2]
[332081639,1720953045917,-500.0,0.00013808,2]
[332081642,1720953045926,-500.0,0.00013808,2]
[332081644,1720953045935,-500.0,0.00013808,2]
[332081645,1720953045944,-500.0,0.00013808,2]
[332081647,1720953045953,-515.7,0.00013808,2]
[332081649,1720953045962,-500.0,0.00013808,2]
[332081651,1720953045971,-500.0,0.00013808,2]
[332081653,1720953045981,-500.0,0.00013808,2]
[332081655,1720953045990,-500.0,0.00013808,2]
[332081656,1720953046000,-832.99,0.00013808,2]
[332081657,1720953046009,-575.04,0.00013808,2]
[332081658,1720953046018,-500.0,0.00013808,2]
[332081659,1720953046028,-500.0,0.00013808,2]
[332081660,1720953046038,-500.0,0.00013808,2]
[332081661,1720953046047,-500.0,0.00013808,2]
[332081663,1720953046056,-500.0,0.00013808,2]
[332081665,1720953046066,-958.73,0.00013808,2]
[332081667,1720953046075,-500.0,0.00013808,2]
[332081669,1720953046085,-500.0,0.00013808,2]
[332081671,1720953046095,-500.0,0.00013808,2]
[332081673,1720953046104,-594.21,0.00013808,2]
[332081675,1720953046113,-500.0,0.00013808,2]
[332081677,1720953046123,-500.0,0.00013808,2]
[332081679,1720953046132,-573.98,0.00013808,2]
[332081681,1720953046142,-500.0,0.00013808,2]
[332081683,1720953046151,-500.0,0.00013808,2]
[332081685,1720953046160,-614.44,0.00013808,2]
[332081687,1720953046169,-568.85,0.00013808,2]
[332081689,1720953046178,-500.0,0.00013808,2]
[332081691,1720953046188,-500.0,0.00013808,2]
[332081693,1720953046197,-500.0,0.00013808,2]
[332081695,1720953046208,-622.71,0.00013808,2]
[332081697,1720953046217,-500.0,0.00013808,2]
[332081699,1720953046226,-846.91,0.00013808,2]
[332081701,1720953046235,-500.0,0.00013808,2]
[332081703,1720953046245,-500.0,0.00013808,2]
[332081705,1720953046254,-644.97,0.00013808,2]
[332081707,1720953046263,-535.35839925,0.00013808,2]
[332081709,1720953046272,-500.0,0.00013808,2]
[332081711,1720953046281,-621.73,0.00013808,2]
[332081713,1720953046292,-500.0,0.00013808,2]
[332081714,1720953046300,-500.0,0.00013808,2]
[332081716,1720953046310,-510.67134423,0.00013808,2]
[332081719,1720953046319,-500.0,0.00013808,2]
[332081720,1720953046329,-916.4,0.00013808,2]
[332081723,1720953046339,-500.0,0.00013808,2]
[332081725,1720953046348,-577.0,0.00013808,2]
[332081726,1720953046357,-647.37,0.00013808,2]
[332081728,1720953046367,-500.0,0.00013808,2]
[332081731,1720953046378,-806.33,0.00013808,2]
[332081736,1720953046387,-500.0,0.00013808,2]
[332081738,1720953046397,-1047.99,0.00013808,2]
[332081741,1720953046406,-500.0,0.00013808,2]
[332081743,1720953046416,-500.0,0.00013808,2]
[332081745,1720953046425,-500.0,0.00013808,2]
[332081747,1720953046434,-873.3,0.00013808,2]
[332081749,1720953046444,-567.1,0.00013808,2]
[332081751,1720953046453,-676.5,0.00013808,2]
[332081753,1720953046463,-500.0,0.00013808,2]
[332081755,1720953046472,-500.0,0.00013808,2]
[332081757,1720953046482,-500.0,0.00013808,2]
[332081759,1720953046492,-500.0,0.00013808,2]
[332081761,1720953046501,-500.0,0.00013808,2]
[332081763,1720953046511,-500.0,0.00013808,2]
[332081765,1720953046520,-500.0,0.00013808,2]
[332081767,1720953046529,-500.0,0.00013808,2]
[332081769,1720953046539,-589.97,0.00013808,2]
[332081770,1720953046548,-500.0,0.00013808,2]
[332081773,1720953046558,-500.0,0.00013808,2]
[332081774,1720953046567,-521.9,0.00013808,2]
[332081777,1720953046576,-957.15,0.00013808,2]
[332081778,1720953046585,-500.0,0.00013808,2]
[332081779,1720953046594,-500.0,0.00013808,2]
[332081780,1720953046604,-552.0557284,0.00013808,2]
[332081782,1720953046613,-611.58,0.00013808,2]
[332081784,1720953046622,-521.59,0.00013808,2]
[332081785,1720953046631,-851.27,0.00013808,2]
[332081788,1720953046641,-150.0,0.00013808,2]
[332081790,1720953046651,-500.0,0.00013808,2]
[332081792,1720953046661,-709.74,0.00013808,2]
[332081794,1720953046671,-500.0,0.00013808,2]
[332081796,1720953046683,-500.0,0.00013808,2]
[332081798,1720953046693,-500.0,0.00013808,2]
[332081800,1720953046703,-172.32694696,0.00013808,2]
[332081802,1720953046713,-500.0,0.00013808,2]
[332081804,1720953046722,-500.0,0.00013808,2]
[332081806,1720953046732,-400.07505391,0.00013808,2]
[332081808,1720953046741,-500.0,0.00013808,2]
[332081810,1720953046751,-500.0,0.00013808,2]
[332081812,1720953046761,-500.0,0.00013808,2]
[332081814,1720953046771,-529.45,0.00013808,2]
[332081816,1720953046780,-691.5,0.00013808,2]
[332081818,1720953046789,-500.0,0.00013808,2]
[332081820,1720953046798,-771.5,0.00013808,2]
[332081822,1720953046808,-507.42,0.00013808,2]
[332081823,1720953046817,-500.0,0.00013808,2]
[332081825,1720953046827,-500.0,0.00013808,2]
[332081827,1720953046837,-500.0,0.00013808,2]
[332081829,1720953046848,-610.63,0.00013808,2]
[332081831,1720953046858,-707.58,0.00013808,2]
[332081833,1720953046868,-500.0,0.00013808,2]
[332081835,1720953046877,-782.02,0.00013808,2]
[332081837,1720953046886,-756.83,0.00013808,2]
[332081839,1720953046895,-500.0,0.00013808,2]
[332081841,1720953046905,-723.06,0.00013808,2]
[332081843,1720953046914,-500.0,0.00013808,2]
[332081845,1720953046925,-988.21,0.00013808,2]
[332081847,1720953046935,-795.81,0.00013808,2]
[332081849,1720953046944,-500.0,0.00013808,2]
[332081851,1720953046954,-1010.02,0.00013808,2]
[332081853,1720953046963,-500.0,0.00013808,2]
[332081855,1720953046973,-677.21,0.00013808,2]
[332081857,1720953046982,-500.0,0.00013808,2]
[332081859,1720953046991,-584.95,0.00013808,2]
[332081860,1720953047001,-500.0,0.00013808,2]
[332081862,1720953047010,-500.0,0.00013808,2]
[332081864,1720953047019,-500.0,0.00013808,2]
[332081865,1720953047029,-500.0,0.00013808,2]
[332081866,1720953047039,-659.93,0.00013808,2]
[332081867,1720953047048,-500.0,0.00013808,2]
[332081868,1720953047057,-500.0,0.00013808,2]
[332081869,1720953047066,-500.0,0.00013808,2]
[332081871,1720953047075,-500.0,0.00013808,2]
[332081872,1720953047085,-500.0,0.00013808,2]
[332081874,1720953047094,-500.0,0.00013808,2]
[332081876,1720953047105,-500.0,0.00013808,2]
[332081878,1720953047115,-500.0,0.00013808,2]
[332081880,1720953047124,-500.0,0.00013808,2]
[332081882,1720953047136,-500.0,0.00013808,2]
[332081884,1720953047146,-576.77,0.00013808,2]
[332081886,1720953047156,-500.0,0.00013808,2]
[332081888,1720953047166,-582.79,0.00013808,2]
[332081890,1720953047175,-500.0,0.00013808,2]
[332081892,1720953047185,-367.79,0.00013808,2]
[332081894,1720953047194,-500.0,0.00013808,2]
[332081896,1720953047204,-732.18,0.00013808,2]
[332081898,1720953047214,-500.0,0.00013808,2]
[332081900,1720953047223,-500.0,0.00013808,2]
[332081902,1720953047233,-500.0,0.00013808,2]
[332081904,1720953047242,-500.0,0.00013808,2]
[332081906,1720953047252,-500.0,0.00013808,2]
[332081908,1720953047261,-500.0,0.00013808,2]
[332081910,1720953047271,-575.0,0.00013808,2]
[332081912,1720953047281,-500.0,0.00013808,2]
[332081914,1720953047298,-500.0,0.00013808,2]
[332081916,1720953047307,-500.0,0.00013808,2]
[332081918,1720953047316,-564.06,0.00013808,2]
[332081920,1720953047326,-633.87,0.00013808,2]
[332081922,1720953047338,-500.0,0.00013808,2]
[332081924,1720953047347,-500.0,0.00013808,2]
[332081926,1720953047359,-500.0,0.00013808,2]
[332081928,1720953047369,-500.0,0.00013808,2]
[332081930,1720953047378,-500.0,0.00013808,2]
[332081932,1720953047388,-500.0,0.00013808,2]
[332081934,1720953047397,-500.0,0.00013808,2]
[332081936,1720953047407,-500.0,0.00013808,2]
[332081938,1720953047418,-717.26,0.00013808,2]
[332081941,1720953047428,-503.37,0.00013808,2]
[332081943,1720953047438,-500.0,0.00013808,2]
[332081945,1720953047447,-531.88,0.00013808,2]
[332081947,1720953047458,-500.0,0.00013808,2]
[332081949,1720953047470,-625.34,0.00013808,2]
[332081951,1720953047479,-500.0,0.00013808,2]
[332081953,1720953047489,-536.56,0.00013808,2]
[332081955,1720953047498,-500.0,0.00013808,2]
[332081957,1720953047508,-500.0,0.00013808,2]
[332081959,1720953047517,-500.0,0.00013808,2]
[332081961,1720953047527,-500.0,0.00013808,2]
[332081962,1720953047536,-559.11,0.00013808,2]
[332081964,1720953047545,-500.0,0.00013808,2]
[332081965,1720953047554,-500.0,0.00013808,2]
[332081966,1720953047563,-647.05,0.00013808,2]
[332081968,1720953047572,-514.14,0.00013808,2]
[332081970,1720953047582,-500.0,0.00013808,2]
[332081971,1720953047591,-546.81,0.00013808,2]
[332081972,1720953047600,-500.0,0.00013808,2]
[332081974,1720953047610,-500.0,0.00013808,2]
[332081975,1720953047618,-769.63,0.00013808,2]
[332081977,1720953047627,-500.0,0.00013808,2]
[332081978,1720953047637,-500.0,0.00013808,2]
[332081980,1720953047646,-500.0,0.00013808,2]
[332081981,1720953047655,-500.0,0.00013808,2]
[332081983,1720953047664,-567.08,0.00013808,2]
[332081985,1720953047675,-500.0,0.00013808,2]
[332081986,1720953047686,-500.0,0.00013808,2]
[332081988,1720953047697,-500.0,0.00013808,2]
[332081990,1720953047706,-500.0,0.00013808,2]
[332081991,1720953047716,-514.02,0.00013808,2]
[332081993,1720953047725,-631.30808207,0.00013808,2]
[332081994,1720953047735,-500.0,0.00013808,2]
[332081996,1720953047744,-500.0,0.00013808,2]
[332081997,1720953047753,-500.0,0.00013808,2]
[332081999,1720953047763,-500.0,0.00013808,2]
[332082001,1720953047772,-1021.83,0.00013808,2]
[332082002,1720953047782,-500.0,0.00013808,2]
[332082004,1720953047791,-553.48,0.00013808,2]
[332082006,1720953047800,-500.0,0.00013808,2]
[332082007,1720953047810,-722.88,0.00013808,2]
[332082009,1720953047820,-500.0,0.00013808,2]
[332082011,1720953047829,-821.75,0.00013808,2]
[332082012,1720953047838,-721.24,0.00013808,2]
[332082014,1720953047847,-500.0,0.00013808,2]
[332082015,1720953047857,-734.99,0.00013808,2]
[332082017,1720953047868,-500.0,0.00013808,2]
[332082018,1720953047877,-300.47252005,0.00013808,2]
[332082020,1720953047887,-684.45,0.00013808,2]
[332082022,1720953047896,-500.0,0.00013808,2]
[332082024,1720953047907,-500.0,0.00013808,2]
[332082025,1720953047916,-500.0,0.00013808,2]
[332082027,1720953047926,-500.0,0.00013808,2]
[332082029,1720953047936,-500.0,0.00013808,2]
[332082030,1720953047946,-500.0,0.00013808,2]
[332082032,1720953047955,-659.11,0.00013808,2]
[332082034,1720953047966,-788.08,0.00013808,2]
[332082035,1720953047976,-652.62,0.00013808,2]
[332082037,1720953047985,-963.07,0.00013808,2]
[332082039,1720953047995,-559.2,0.00013808,2]
[332082045,1720953048066,-586.93,0.00013808,2]
[332082047,1720953048076,-500.0,0.00013808,2]
[332082049,1720953048086,-1045.12,0.00013808,2]
[332082051,1720953048095,-500.0,0.00013808,2]
[332082053,1720953048107,-564.05,0.00013808,2]
[332082055,1720953048119,-813.9,0.00013808,2]
[332082057,1720953048128,-500.0,0.00013808,2]
[332082059,1720953048137,-500.0,0.00013808,2]
[332082061,1720953048146,-851.27,0.00013808,2]
[332082063,1720953048156,-552.78,0.00013808,2]
[332082065,1720953048164,-618.81096105,0.00013808,2]
[332082066,1720953048174,-967.32,0.00013808,2]
[332082067,1720953048183,-1237.64,0.00013808,2]
[332082068,1720953048192,-500.0,0.00013808,2]
[332082069,1720953048201,-500.0,0.00013808,2]
[332082070,1720953048210,-661.8,0.00013808,2]
[332082071,1720953048220,-721.93,0.00013808,2]
[332082072,1720953048229,-650.84,0.00013808,2]
[332082073,1720953048238,-500.0,0.00013808,2]
[332082074,1720953048247,-500.0,0.00013808,2]
[332082075,1720953048256,-542.23,0.00013808,2]
[332082076,1720953048266,-500.0,0.00013808,2]
[332082077,1720953048275,-630.42,0.00013808,2]
[332082078,1720953048286,-500.0,0.00013808,2]
[332082079,1720953048299,-500.0,0.00013808,2]
[332082081,1720953048310,-668.0,0.00013808,2]
[332082083,1720953048320,-500.0,0.00013808,2]
[332082085,1720953048331,-500.0,0.00013808,2]
[332082087,1720953048342,-500.0,0.00013808,2]
[332082089,1720953048352,-500.0,0.00013808,2]
[332082091,1720953048363,-668.13,0.00013808,2]
[332082093,1720953048375,-500.0,0.00013808,2]
[332082095,1720953048385,-926.76,0.00013808,2]
[332082097,1720953048395,-500.0,0.00013808,2]
[332082099,1720953048405,-818.24,0.00013808,2]
[332082100,1720953048414,-500.0,0.00013808,2]
[332082102,1720953048423,-500.0,0.00013808,2]
[332082104,1720953048432,-500.0,0.00013808,2]
[332082106,1720953048441,-500.0,0.00013808,2]
[332082108,1720953048451,-500.0,0.00013808,2]
[332082110,1720953048460,-500.0,0.00013808,2]
[332082112,1720953048469,-875.29,0.00013808,2]
[332082114,1720953048480,-571.38,0.00013808,2]
[332082116,1720953048493,-500.0,0.00013808,2]
[332082118,1720953048506,-500.0,0.00013808,2]
[332082120,1720953048515,-4346.32,0.00013808,2]
[332082122,1720953048523,-500.0,0.00013808,2]
[332082124,1720953048533,-730.47,0.00013808,2]
[332082126,1720953048542,-500.0,0.00013808,2]
[332082128,1720953048551,-500.0,0.00013808,2]
[332082130,1720953048560,-793.29,0.00013808,2]
[332082132,1720953048569,-956.15,0.00013808,2]
[332082134,1720953048578,-513.3,0.00013808,2]
[332082136,1720953048587,-500.0,0.00013808,2]
[332082138,1720953048596,-500.0,0.00013808,2]
[332082139,1720953048606,-500.0,0.00013808,2]
[332082141,1720953048615,-500.0,0.00013808,2]
[332082144,1720953048625,-500.0,0.00013808,2]
[332082146,1720953048634,-500.0,0.00013808,2]
[332082147,1720953048644,-556.02,0.00013808,2]
[332082149,1720953048653,-978.75,0.00013808,2]
[332082151,1720953048662,-636.44,0.00013808,2]
[332082153,1720953048671,-500.0,0.00013808,2]
[332082155,1720953048680,-813.91,0.00013808,2]
[332082157,1720953048690,-258.04280852,0.00013808,2]
[332082159,1720953048699,-2000.42,0.00013808,2]
[332082161,1720953048708,-532.91,0.00013808,2]
[332082163,1720953048717,-500.0,0.00013808,2]
[332082165,1720953048726,-759.7,0.00013808,2]
[332082167,1720953048735,-571.84,0.00013808,2]
[332082169,1720953048744,-813.67,0.00013808,2]
[332082171,1720953048753,-500.0,0.00013808,2]
[332082173,1720953048762,-500.0,0.00013808,2]
[332082175,1720953048772,-500.0,0.00013808,2]
[332082177,1720953048780,-1769.97,0.00013808,2]
[332082179,1720953048790,-2233.7,0.00013808,2]
[332082181,1720953048799,-563.79,0.00013808,2]
[332082183,1720953048808,-660.57,0.00013808,2]
[332082185,1720953048817,-500.0,0.00013808,2]
[332082187,1720953048827,-500.0,0.00013808,2]
[332082189,1720953048836,-597.19,0.00013808,2]
[332082191,1720953048845,-1284.3,0.00013808,2]
[332082193,1720953048856,-552.52,0.00013808,2]
[332082195,1720953048866,-500.0,0.00013808,2]
[332082197,1720953048875,-500.0,0.00013808,2]
[332082199,1720953048885,-1017.39,0.00013808,2]
[332082201,1720953048894,-500.0,0.00013808,2]
[332082203,1720953048903,-500.0,0.00013808,2]
[332082205,1720953048912,-1063.32,0.00013808,2]
[332082207,1720953048922,-500.0,0.00013808,2]
[332082209,1720953048931,-500.0,0.00013808,2]
[332082211,1720953048940,-532.45,0.00013808,2]
[332082213,1720953048950,-500.0,0.00013808,2]
[332082215,1720953048960,-810.42,0.00013808,2]
[332082217,1720953048969,-414.40115673,0.00013808,2]
[332082219,1720953048979,-734.34,0.00013808,2]
[332082221,1720953048989,-500.0,0.00013808,2]
[332082223,1720953048998,-500.0,0.00013808,2]
[332082225,1720953049008,-500.0,0.00013808,2]
[332082227,1720953049018,-1042.25,0.00013808,2]
[332082229,1720953049027,-544.08,0.00013808,2]
[332082231,1720953049037,-767.04,0.00013808,2]
[332082233,1720953049046,-577.6,0.00013808,2]
[332082235,1720953049055,-500.0,0.00013808,2]
[332082237,1720953049065,-500.0,0.00013808,2]
[332082239,1720953049074,-500.0,0.00013808,2]
[332082241,1720953049083,-500.0,0.00013808,2]
[332082243,1720953049094,-500.0,0.00013808,2]
[332082245,1720953049104,-500.0,0.00013808,2]
[332082247,1720953049113,-890.25,0.00013808,2]
[332082249,1720953049122,-500.0,0.00013808,2]
[332082251,1720953049132,-500.0,0.00013808,2]
[332082253,1720953049141,-529.03,0.00013808,2]
[332082255,1720953049150,-500.0,0.00013808,2]
[332082257,1720953049160,-786.78,0.00013808,2]
[332082259,1720953049170,-500.0,0.00013808,2]
[332082261,1720953049179,-991.4,0.00013808,2]
[332082263,1720953049188,-514.71,0.00013808,2]
[332082265,1720953049198,-500.0,0.00013808,2]
[332082267,1720953049207,-616.84,0.00013808,2]
[332082269,1720953049216,-500.0,0.00013808,2]
[332082271,1720953049226,-628.72,0.00013808,2]
[332082273,1720953049235,-785.58,0.00013808,2]
[332082274,1720953049243,-3926.71,0.00013808,2]
[332082276,1720953049253,-2899.14,0.00013808,2]
[332082278,1720953049263,-824.32,0.00013808,2]
[332082280,1720953049272,-819.62,0.00013808,2]
[332082282,1720953049284,-516.57,0.00013808,2]
[332082285,1720953049295,-922.21,0.00013808,2]
[332082286,1720953049304,-500.0,0.00013808,2]
[332082288,1720953049314,-773.04,0.00013808,2]
[332082290,1720953049323,-938.7,0.00013808,2]
[332082292,1720953049334,-655.89,0.00013808,2]
[332082295,1720953049343,-500.0,0.00013808,2]
[332082297,1720953049354,-841.33,0.00013808,2]
[332082299,1720953049363,-593.56,0.00013808,2]
[332082300,1720953049373,-500.0,0.00013808,2]
[332082302,1720953049382,-599.08,0.00013808,2]
[332082304,1720953049391,-447.45972672,0.00013808,2]
[332082306,1720953049400,-500.0,0.00013808,2]
[332082308,1720953049409,-995.19,0.00013808,2]
[332082310,1720953049418,-524.43,0.00013808,2]
[332082312,1720953049428,-799.31,0.00013808,2]
[332082314,1720953049438,-500.0,0.00013808,2]
[332082316,1720953049449,-725.52,0.00013808,2]
[332082318,1720953049458,-500.0,0.00013808,2]
[332082320,1720953049468,-500.0,0.00013808,2]
[332082322,1720953049479,-500.0,0.00013808,2]
[332082324,1720953049489,-500.0,0.00013808,2]
[332082326,1720953049499,-150.0,0.00013824,2]
[332082328,1720953049509,-150.0,0.00013834,2]